Cogmind - Beta 16.1 @@@ ROGUE MODE // 2026.04.14 @ 01:31:43 Player: Keestofa Result: Destroyed by YR-S7S(R) with Subdweller Laser Performance ------------- Evolutions (0) 0 Regions Visited (2) 400 Robots Destroyed (10) 50 Value Destroyed (308) 308 Prototype IDs (2) 40 Alien Tech Used (0) 0 Bonus (0) 0 TOTAL SCORE: 798 Bonus ------- None Cogmind --------- Core Integrity 0/250 Matter 271/300 Energy 125/125 System Corruption 0% Temperature Cool (6) Movement Rolling (110) Location -10/Subcaves Parts ------- > --- POWER (1) -------- Light Ion Engine > --- PROPULSION (2) --- Aluminum Leg Subdweller Monowheel > --- UTILITY (2) ------ Disposable Heat Sink Small Storage Unit > --- WEAPON (2) ------- Beam Cannon Subdweller Machine Gun > --- INVENTORY (8) ---- Light Treads Light Treads Aluminum Leg Aluminum Leg Aluminum Leg Seismic Detector Small Laser Peak State ------------ > --- POWER ------------ Light Ion Engine > --- PROPULSION ------- Aluminum Leg Subdweller Monowheel > --- UTILITY ---------- Disposable Heat Sink Small Storage Unit > --- WEAPON ----------- Beam Cannon Subdweller Machine Gun > --- INVENTORY -------- Light Treads Light Treads Aluminum Leg Aluminum Leg Aluminum Leg Seismic Detector Small Laser [Rating: 10] Favorites ----------- Power Light Ion Engine Engine Light Ion Engine Propulsion Aluminum Leg Leg Aluminum Leg Wheel Subdweller Monowheel Utility Small Storage Unit Device Seismic Detector Storage Small Storage Unit Weapon Small Laser Energy Gun Small Laser Energy Cannon Beam Cannon Ballistic Gun Light Assault Rifle Build | -11 -10 -10 ------- Run | Yrd Mat Sub Slots Evolved . | . . . Power . | . . . Propulsion . | . . . Utility . | . . . Weapon . | . . . Parts Attached 16 | 8 3 5 Power 2 | 2 . . Engine 2 | 2 . . Core . | . . . Reactor . | . . . Propulsion 4 | 2 1 1 Treads . | . . . Leg 3 | 2 1 . Wheel 1 | . . 1 Hover . | . . . Flight . | . . . Utility 4 | 2 . 2 Device 3 | 1 . 2 Storage 1 | 1 . . Processor . | . . . Hackware . | . . . Protection . | . . . Artifact . | . . . Weapon 6 | 2 2 2 Energy Gun 3 | 2 1 . Energy Cannon 1 | . . 1 Ballistic Gun 2 | . 1 1 Ballistic Cannon . | . . . Launcher . | . . . Special Weapon . | . . . Impact Weapon . | . . . Slashing Weapon . | . . . Piercing Weapon . | . . . Special Melee Weapon . | . . . Unidentified Prototypes . | . . . Parts Lost 3 | . 2 1 Power 1 | . 1 . Propulsion . | . . . Utility . | . . . Weapon 2 | . 1 1 Highest Loss Streak 2 | . 2 1 To Critical Strikes . | . . . Average Backups 5 | 2 4 7 Power . | . . . Propulsion 3 | 1 2 5 Utility . | . . . Weapon 1 | . . 2 Tool/Special . | . . . Unused Backups 4 | . . 4 Power . | . . . Propulsion 4 | . . 4 Utility . | . . . Weapon . | . . . Tool/Special . | . . . Average Slot Usage (%) 98 | . 98 99 Engine 13 | . 12 14 Leg 26 | . 28 24 Wheel 1 | . . 3 Device 14 | . 14 14 Storage 14 | . 14 14 Energy Gun 17 | . 21 13 Energy Cannon 4 | . . 8 Ballistic Gun 5 | . 5 6 Peak Build Rating 10 | 7 7 10 Average Rating 7 | 5 6 7 On Entrance 4 | . 7 7 Avg Prop Armor Cover (%) 9 | . . 9 Naked Turns . | . . . Heaviest Build 14 | 14 14 13 Greatest Support 20 | 20 20 20 Greatest Overweight (x) 1 | . . 1 Average Overweight (x) . | . . . Largest Inventory Capacity 8 | 8 8 8 Average Capacity 7 | 7 8 8 Most Carried 8 | 4 7 8 Average Carried 5 | 2 4 7 Final Capacity 8 | 8 8 8 Final Carried 7 | 4 7 7 Class Distribution -------------------- 96% | Mutant 3% | Scavenger-Mutant Dominant Class ---------------- Mutant | -10/Materials Mutant | -10/Subcaves Resources | -11 -10 -10 ----------- Run | Yrd Mat Sub Matter Collected 363 | 235 88 40 Remotely . | . . . Salvage Created 374 | 15 129 230 Parts 30 | 3 10 17 Haulers Intercepted . | . . . Recyclers Shooed 1 | . 1 . Parts Field Recycled . | . . . Retrieved Matter . | . . . Parts Self-Destructed . | . . . Prevented . | . . . Parts Restored . | . . . Kills | -11 -10 -10 ------- Run | Yrd Mat Sub Combat Hostiles Destroyed 9 | . 4 5 Guns 5 | . 4 1 Cannons 4 | . . 4 Classes Destroyed 4 | 1 2 1 Tunneler 1 | 1 . . Swarmer 2 | . 2 . Grunt 2 | . 2 . Subdweller 5 | . . 5 Best Kill Streak 2 | 1 2 2 Combat Bots Only 2 | . 2 2 Max Kills in Single Turn 2 | 1 2 1 Gunslinging 1 | . 1 . Exploded . | . . . Melee . | . . . Uniques/NPCs Destroyed . | . . . Combat | -11 -10 -10 -------- Run | Yrd Mat Sub Hostile Shots Fired 84 | . 45 39 Missed 30 | . 17 13 Hits 54 | . 28 26 Projectile 54 | . 28 26 Critical Strikes 2 | . . 2 Damage Taken 871 | . 309 562 Core 253 | . 34 219 Absorbed by Shields . | . . . Core Remaining (%) 100 | 100 . . Volleys Fired 44 | 2 20 22 Largest 2 | 2 2 2 Hottest 100 | 80 80 100 Shots Fired 82 | 4 40 38 Gun 60 | 4 40 16 Cannon 22 | . . 22 Launcher . | . . . Special . | . . . Kinetic 15 | . 13 2 Thermal 58 | 2 20 36 Explosive . | . . . Electromagnetic 9 | 2 7 . Robot Hit Streak 18 | 2 4 18 Robot Miss Streak 3 | 1 3 1 Penetration Max . | . . . Secondary Targets 1 | . 1 . Max Gunslinging Chain 1 | . 1 . Shots Hit Robots 58 | 2 23 33 Core Hits 21 | 1 9 11 Critical Kills . | . . . Critical Parts Destroyed . | . . . Critical Strikes . | . . . Melee Attacks . | . . . Impact . | . . . Slashing . | . . . Piercing . | . . . Sneak Attacks . | . . . Combat Hostiles . | . . . Follow-up Attacks . | . . . Damage Inflicted 780 | 22 237 521 Guns 428 | 22 237 169 Cannons 352 | . . 352 Explosions . | . . . Melee . | . . . Ramming . | . . . Kinetic 123 | . 77 46 Thermal 606 | 10 121 475 Explosive . | . . . Electromagnetic 51 | 12 39 . Impact . | . . . Slashing . | . . . Piercing . | . . . Highest Corruption . | . . . Average Corruption . | . . . Corruption Purged . | . . . Corruption Blocked . | . . . Overload Shots . | . . . Overflow Damage . | . . . Projectiles . | . . . Explosions . | . . . Melee . | . . . Knockbacks . | . . . Impact . | . . . Kinetic . | . . . Secondary . | . . . Self-Inflicted Damage . | . . . Shots . | . . . Rammed . | . . . Targets Rammed . | . . . Kicked . | . . . Crushed . | . . . Highest Temperature 227 | 36 227 202 Average Temperature 94 | 20 104 87 Received Heat Transfer 532 | . 135 397 Siege Activations . | . . . Martial Activations . | . . . Shielding Activations . | . . . Robots Disrupted . | . . . Combat Hostiles . | . . . Robots Corrupted . | . . . Combat Hostiles . | . . . Parts Fried . | . . . Impact Corruptions . | . . . Robots Melted . | . . . Combat Hostiles . | . . . Parts Melted 2 | . 1 1 Heat Transferred 1315 | 25 275 1015 Parts Sabotaged . | . . . Parts Stolen . | . . . Parts Stripped . | . . . Power Chain Reactions . | . . . Alert | -11 -10 -10 ------- Run | Yrd Mat Sub Maximum Alert Level . | . . . Low Security (%) 100 | 100 100 . Level 1 . | . . . Level 2 . | . . . Level 3 . | . . . Level 4 . | . . . Level 5 . | . . . High Security . | . . . Max Security . | . . . Peak Influence 90 | 5 90 . Initial 3 | . 3 . Average 17 | . 21 . Influence Increases 144 | 5 139 . Destroy 0b10 Robot/C 80 | . 80 . Destroy 0b10 Robot/NC 5 | 5 . . Destroy Leader 20 | . 20 . Successful Hack 9 | . 9 . Lose Combat Pursuer 30 | . 30 . Influence Decreases 144 | . 80 64 Entered New Map 34 | . 2 32 Time Decay 100 | . 68 32 Lost Part 10 | . 10 . Squads Dispatched . | . . . Investigation . | . . . Extermination . | . . . Reinforcement . | . . . Assault . | . . . Garrison . | . . . Intercept . | . . . Searches Triggered . | . . . Construction Impeded . | . . . Haulers Reinforced . | . . . Active Scanning Responses . | . . . Cargo Convoy Interrupts . | . . . Stealth | -11 -10 -10 --------- Run | Yrd Mat Sub Distress Signals 1 | . 1 . Communications Jammed . | . . . Distress Signals . | . . . Times Spotted 13 | . 7 6 Peak Tracking Total 4 | . 4 2 Tactical Retreats 1 | . 1 . Traps | -11 -10 -10 ------- Run | Yrd Mat Sub Traps Triggered . | . . . Indirectly . | . . . Trap Hack Attempts . | . . . Triggered . | . . . Disarmed . | . . . Reprogrammed . | . . . Reused . | . . . Traps Extracted . | . . . Installed . | . . . Triggered . | . . . Machines | -11 -10 -10 ---------- Run | Yrd Mat Sub Machines Disabled . | . . . Max in Single Turn . | . . . Machines Repaired . | . . . Machines Dismantled . | . . . Machines Sabotaged . | . . . Overloaded Fab Kills . | . . . Hacking | -11 -10 -10 --------- Run | Yrd Mat Sub Machines Accessed 3 | . 3 . Terminals 3 | . 3 . Fabricators . | . . . Repair Stations . | . . . Recycling Units . | . . . Scanalyzers . | . . . Garrison Access . | . . . Total Hacks 8 | . 8 . Successful 3 | . 3 . Failed 5 | . 5 . Catastrophic . | . . . Database Lockouts . | . . . Manual 4 | . 4 . Terminals 8 | . 8 . Fabricators . | . . . Repair Stations . | . . . Recycling Units . | . . . Scanalyzers . | . . . Garrison Access . | . . . Terminal Hacks 1 | . 1 . Prototype ID Bank 1 | . 1 . Fabricator Hacks . | . . . Repair Station Hacks . | . . . Recycling Unit Hacks . | . . . Scanalyzer . | . . . Garrison Access Hacks . | . . . Unauthorized Hacks 2 | . 2 . Terminals 2 | . 2 . Botnet 2 | . 2 . Fabricators . | . . . Repair Stations . | . . . Recycling Units . | . . . Scanalyzers . | . . . Garrison Access . | . . . Data Cores Recovered . | . . . Used . | . . . Hacking Detections 3 | . 3 . Full Trace Events . | . . . Feedback Events . | . . . Feedback Blocked . | . . . Robot Schematics Acquired . | . . . Robots Built . | . . . Authchips . | . . . Time . | . . . Total Robot Build Rating . | . . . Part Schematics Acquired . | . . . Parts Built . | . . . Authchips . | . . . Time . | . . . Total Part Build Rating . | . . . Part Studies Acquired . | . . . Parts Repaired . | . . . Time . | . . . Parts Recycled . | . . . Recycled Matter . | . . . Retrieved Matter . | . . . Retrieved Components . | . . . Parts Scanalyzed . | . . . Part Schematics Acquired . | . . . Parts Damaged . | . . . Bothacking | -11 -10 -10 ------------ Run | Yrd Mat Sub Used RIF Installer . | . . . Robots Hacked . | . . . Non-combat . | . . . Combat . | . . . Robot Hacks Applied . | . . . Relay Couplers Released . | . . . Fabnet Peak Effective % . | . . . Robots Rewired . | . . . Allies Hacked . | . . . Hacks Repelled . | . . . Allies | -11 -10 -10 -------- Run | Yrd Mat Sub Total Allies . | . . . Largest Group . | . . . Highest-Rated Group . | . . . Highest-Rated Ally . | . . . Total Orders . | . . . Ally Attacks . | . . . Total Damage . | . . . Kills . | . . . Allies Corrupted . | . . . Allies Melted . | . . . Intel | -11 -10 -10 ------- Run | Yrd Mat Sub Active Infowar (turns) 567 | 10 312 245 Seismic 567 | 10 312 245 Robot Analysis Total . | . . . Derelict Logs Recovered 1 | . . 1 Drone Launches . | . . . Drone Recoveries . | . . . Exploration | -11 -10 -10 ------------- Run | Yrd Mat Sub Turns Passed 722 | 76 312 334 Spaces Moved 384 | 46 146 192 Core 3 | 3 . . Treads . | . . . Legs 343 | 43 146 154 Wheels 38 | . . 38 Hover . | . . . Flight . | . . . Fastest Speed 50 | 50 120 110 Average Speed 118 | 115 120 118 Slowest Speed 190 | 120 120 190 Overloaded Moves . | . . . Propulsion Burnouts . | . . . Robots Hopped . | . . . Potential Cave-ins . | . . . Cave-ins Triggered . | . . . Exploration Rate (%) 16 | 3 35 11 Regions Visited 2 Branch Regions 1 Pre-discovered Areas 1 | . . 1 Known Exits Taken . | . . . Unknown Exits Taken 2 | 1 1 . Scrap Searched . | . . . Spaces Dug . | . . . Terrain Destroyed . | . . . Melee . | . . . Projectile . | . . . AOE . | . . . Terrain Rammed . | . . . Walls Destroyed . | . . . Machines Disabled . | . . . Actions | -11 -10 -10 --------- Run | Yrd Mat Sub Total 565 | 61 244 260 Wait 109 | 3 72 34 Move 382 | 45 145 192 Hop . | . . . Pick Up 8 | 3 3 2 Fast Attach 8 | 7 . 1 Attach 3 | . 2 1 Detach . | . . . Swap 8 | 1 2 5 Drop 3 | . . 3 Fire 44 | 2 20 22 Melee . | . . . Ram . | . . . Kick . | . . . Crush . | . . . Escape Stasis . | . . . Rewire . | . . . Trap . | . . . Miscellaneous . | . . . Route ------- -11/Scrapyard -10/Materials (discovered 2 exits: [*Min] / [*Sub]) -10/Subcaves History --------- Turn | Location | Event 3 | -11/Scrapyard | Discovered new exit (range 16) 77 | -11/Scrapyard | Entered Materials 211 | -10/Materials | Discovered new exit (range 14) 311 | -10/Materials | Build established: Mutant 383 | -10/Materials | Discovered new exit (range 5) 389 | -10/Materials | Entered Subcaves 482 | -10/Subcaves | Learned location of Zion (-6) 503 | -10/Subcaves | Ambushed by Subdwellers from Twisted Machinery 706 | -10/Subcaves | Core integrity fell below 50% 714 | -10/Subcaves | Core integrity fell below 20% 723 | -10/Subcaves | Destroyed by YR-S7S(R) with Subdweller Laser Last Messages --------------- World map updated: -6/Zion. 00542_ Sub. Optics melted. 00542_ 93-RQQ(R) destroyed. 00548_ Y1-UZY(R) destroyed. 00551_ Acquired 10 matter. 00553_ Acquired Sub. Machine Gun. 00558_ Dropped Lgt. Assault Rifle. 00558_ Acquired Disposable Heat Sink. 00566_ Subatomizers dissect the Sub. Monowheel. 00625_ CI-9MZ(R) destroyed. 00631_ DZ-HXB(R) affixes Scrap Shield Fragment to Scrap Shield. 00635_ Critical hit (Meltdown: +250). 00638_ DZ-HXB(R) destroyed. 00644_ Dropped Disposable Heat Sink. 00645_ Dropped Aluminum Leg. 00647_ Acquired Sub. Monowheel. 00649_ Acquired 30 matter. 00707_ Sml. Laser destroyed. 00713_ IP-W9F(R) destroyed. Map ----- +----------------------------------------------------+ | ?????????????????????????????????????????????????? | | ?????????????????????????????????????????????????? | | ?????????????????????????????????????????????????? | | ?????????????????????????????????????????????????? | | ?????????????????????????????????????????????????? | | ?????????????????????????????????????????????????? | | ?????????????????????????????????????????????????? | | ?????????????????????????????????????????????????? | | ???????????????????????? ????????????????????????? | | ??????????????????????# ???????????????????????? | | ?????????????????????## ???????????????????????? | | ????????????????????? ???????????????????????? | | ?????????????????????? ???????????????????????? | | ?????????????????????? ???????????????????????? | | ?????????????????????? ??????????? ??????????? | | ??????????????????????? ?????????? ??????????? | | ??????????????????????? #???????? ?????????? | | ???????????????????????# ##??##?? ??????????? | | ???????????????????????# ### ## ????????????? | | ??????????????????????## % ??????????????? | | ?????????????# #####?## ????????????????? | | ?????????????# # ??????????????????? | | ????????????# #???????????????????? | | ????????????# *&R #???????????????????? | | ?????????????????# # ##%& #???????????????????? | | ???????????????????????##@ ##???????????????????? | | ??????????????????????## ###????????????????????? | | ?????????????????????## #??????????????????????? | | ??????????????????#### #??????????????????????? | | ???????????????""## # #??????????????????????? | | ???????????????"""" #??????????????????????? | | ???????????????#""""" ##?????????????????????? | | ???????????????#"##""# #?????????????????????? | | ??????????????????##### ##?????????????????????? | | ??????????????????????# ##?????????????????????? | | ??????????????????????## #?????????????????????? | | ???????????????????????# ##?????????????????????? | | ??????????????????????## #??????"???????????????? | | ?????????????????????## & #????" ?""? ??????????? | | ?????????????????????#&!%&#????""" " ??????????? | | ?????????????????????#& %##???? """ ???????????? | | ?????????????????????#=!!!#??? " #????????????? | | ?????????????????????# #####? #????????????? | | ????????????????????## ### ## #?????????????? | | ????????????????????# " ##""??????????? | | ????????????????????## " "??????????? | | ?????????????#######?## #?????????????? | | ????????????## #### ###?????????????? | | ????????????# ## ##???????????????? | | ????????????# ####?????????????? | +----------------------------------------------------+ Best States ------------- Heat Dissipation 25 Coolant Potential 50 Energy Generation 10 Energy Capacity 250 Matter Stores 300 Matter Capacity 300 Sight Range 16 Terrain Scan Density 10 Evasion (%) 55 Item Schematics ----------------- None Robot Schematics ------------------ None Fabricated ------------ Nothing Repaired ---------- Nothing Studied --------- None Alien Tech Used ----------------- None Achievements -------------- None Challenges ------------ None Game ------ Seed MetamassParticleMaterializer Manual? 0 Play Time 00:14:26 Cumulative 30.7 hours Start 2026.04.14 @ 01:19:36 End 2026.04.14 @ 01:31:43 Sessions 1 Manual Loads 0 Difficulty Rogue Special Mode None Game No. 23 Rogue 23 Adventurer 0 Explorer 0 Win Type - Total 0 Types 0/0/0/0/0/0/0/0/0/0 Lore% 11 Gallery% 25 Achievement% 19 Wizard Run 0 Options --------- Layout 1 ASCII 0 Keyboard 1 Movement Numpad Keybinds 0 Fullscreen 1 Font 32/SmallcapsGlow Map View 50x35 Zoom Use 0% Tactical HUD 1 Map Filters NONE Filters NONE Steam 1 RUN: 10c3c3aa-6c4e-4325-bd10-cc25e6f874e9